bitfinex/quotes_BTCUSD_20241025
["timestamp","ask_amount","ask_price","bid_price","bid_amount"]
[1729886858144,0.43601038,66791.0,66790.0,0.000821]
[1729886858360,0.3913074,66791.0,66790.0,0.000821]
[1729886859234,0.43600609,66791.0,66790.0,0.000821]
[1729886860760,0.43600247,66791.0,66790.0,0.000821]
[1729886861689,0.27572794,66791.0,66790.0,0.000821]
[1729886861914,0.00021287,66796.0,66790.0,0.000821]
[1729886862188,0.2277135,66796.0,66790.0,0.000821]
[1729886862417,0.3052074,66791.0,66790.0,0.000821]
[1729886862880,0.38569914,66791.0,66790.0,0.000821]
[1729886863117,0.3827074,66791.0,66790.0,0.000821]
[1729886863570,0.3877074,66791.0,66790.0,0.000821]
[1729886863819,0.3827074,66791.0,66790.0,0.000821]
[1729886864042,0.3877074,66791.0,66790.0,0.000821]
[1729886866309,0.33177914,66791.0,66790.0,0.000821]
[1729886866732,0.23743287,66791.0,66790.0,0.000821]
[1729886866957,0.23542461,66791.0,66790.0,0.000821]
[1729886869243,0.28011503,66791.0,66790.0,0.000821]
[1729886870100,0.28012351,66791.0,66790.0,0.000821]
[1729886871063,0.23542461,66791.0,66790.0,0.000821]
[1729886871750,0.23524442,66791.0,66790.0,0.000821]
[1729886872193,0.30229278,66791.0,66790.0,0.000821]
[1729886874665,0.30230037,66791.0,66790.0,0.000821]
[1729886875081,0.27992954,66791.0,66790.0,0.000821]
[1729886876129,0.43718319,66791.0,66790.0,0.000821]
[1729886876340,0.43419145,66791.0,66790.0,0.000821]
[1729886877251,0.52359939,66791.0,66790.0,0.000821]
[1729886878085,0.43419145,66791.0,66790.0,0.000821]
[1729886878725,0.43678346,66791.0,66790.0,0.000821]
[1729886878932,0.59407652,66791.0,66790.0,0.000821]
[1729886879145,0.70586661,66791.0,66790.0,0.000821]
[1729886880010,0.59407652,66791.0,66790.0,0.000821]
[1729886881781,0.61751209,66791.0,66790.0,0.000821]
[1729886881997,0.59407652,66791.0,66790.0,0.000821]
[1729886882571,0.59150042,66791.0,66790.0,0.000821]
[1729886884227,0.72579499,66791.0,66790.0,0.000821]
[1729886885335,0.59150042,66791.0,66790.0,0.000821]
[1729886885760,0.43424677,66791.0,66790.0,0.000821]
[1729886886167,0.43588877,66791.0,66790.0,0.000821]
[1729886887449,0.43630117,66791.0,66790.0,0.000821]
[1729886888445,0.43630117,66791.0,66759.0,0.22450889]
[1729886888446,0.01,66774.0,66759.0,0.22450889]
[1729886888667,0.24913627,66760.0,66759.0,0.22450889]
[1729886888892,0.24913627,66760.0,66751.0,0.000821]
[1729886888893,0.26005938,66760.0,66751.0,0.000821]
[1729886889127,0.06732185,66752.0,66751.0,0.000821]
[1729886889582,0.04484142,66753.0,66751.0,0.000821]
[1729886889799,0.15279974,66752.0,66751.0,0.000821]
[1729886890022,0.42431853,66752.0,66751.0,0.000821]
[1729886890248,0.30912371,66752.0,66751.0,0.000821]
[1729886890720,0.42110634,66752.0,66751.0,0.000821]
[1729886891633,0.149808,66752.0,66751.0,0.000821]
[1729886891876,0.31114417,66752.0,66751.0,0.000821]
[1729886892355,0.30826549,66752.0,66751.0,0.000821]
[1729886892837,0.0671062,66753.0,66751.0,0.000821]
[1729886893074,0.04473838,66757.0,66752.0,0.15050381]
[1729886893305,0.0671062,66759.0,66752.0,0.15050381]
[1729886893306,0.22450889,66759.0,66752.0,0.15349967]
[1729886893550,0.22450889,66759.0,66757.0,0.149795]
[1729886893781,0.22450889,66759.0,66758.0,0.149794]
[1729886894020,0.15546575,66762.0,66758.0,0.30029781]
[1729886894230,0.15546575,66762.0,66758.0,0.15050381]
[1729886895699,0.04473838,66765.0,66759.0,0.15050381]
[1729886895942,0.22450889,66773.0,66767.0,0.149773]
[1729886896170,0.22450889,66773.0,66767.0,0.30027681]
[1729886896376,0.22450889,66773.0,66768.0,0.15050381]
[1729886896635,0.22450889,66773.0,66769.0,0.149769]
[1729886896874,0.37426989,66773.0,66769.0,0.15050381]
[1729886897096,0.30522975,66772.0,66769.0,0.15050381]
[1729886897746,0.15546575,66772.0,66769.0,0.30027281]
[1729886897979,0.30522975,66772.0,66769.0,0.15050381]
[1729886898662,0.15546575,66772.0,66769.0,0.15050381]
[1729886899127,0.04474201,66785.0,66770.0,0.15349893]
[1729886899371,0.06711301,66787.0,66770.0,0.15349893]
[1729886899372,0.22450889,66779.0,66778.0,0.154749]
[1729886899582,0.22450889,66787.0,66786.0,0.149731]
[1729886899844,0.22450889,66787.0,66786.0,0.30023481]
[1729886900061,0.22615089,66796.0,66790.0,0.149723]
[1729886900314,0.22615089,66796.0,66790.0,0.30022681]
[1729886904778,0.001642,66796.0,66790.0,0.30022681]
[1729886905478,0.001642,66796.0,66790.0,0.57475355]
[1729886905719,0.001642,66796.0,66790.0,0.65155988]
[1729886905956,0.001642,66796.0,66790.0,0.65624491]
[1729886906405,0.001642,66796.0,66790.0,0.64959256]
[1729886906623,0.001642,66796.0,66790.0,0.65155988]
[1729886906838,0.001642,66796.0,66790.0,0.64959256]
[1729886907357,0.001642,66796.0,66790.0,0.49412681]
[1729886908680,0.001642,66796.0,66790.0,0.64959256]
[1729886913473,0.001642,66796.0,66795.0,0.154711]
[1729886913728,0.001642,66796.0,66795.0,0.30521481]
[1729886918166,0.001642,66796.0,66795.0,0.30021481]
[1729886918382,0.001642,66796.0,66795.0,0.15050381]
[1729886918808,0.151351,66796.0,66795.0,0.15050381]
[1729886919061,0.001642,66796.0,66795.0,0.15050381]
[1729886920901,0.001642,66796.0,66795.0,0.30021481]
[1729886921128,0.001642,66796.0,66795.0,0.15050381]
[1729886925701,0.0789,66792.0,66788.0,0.149726]
[1729886925915,0.0789,66792.0,66787.0,0.300279]
[1729886925916,0.001642,66796.0,66795.0,0.149711]
[1729886926146,0.001642,66796.0,66795.0,0.30021481]
[1729886926389,0.001642,66796.0,66795.0,0.30490047]
[1729886926624,0.001642,66796.0,66795.0,0.30789434]
[1729886926861,0.22450889,66805.0,66804.0,0.149691]
[1729886927074,0.22450889,66805.0,66798.0,0.29941]
[1729886927314,0.22450889,66805.0,66801.0,0.149697]
[1729886927563,0.15546575,66804.0,66792.0,0.299433]
[1729886927788,0.15546575,66804.0,66794.0,0.149714]
[1729886927789,0.149699,66801.0,66794.0,0.149714]
[1729886928005,0.1497,66801.0,66795.0,0.16268608]
[1729886928234,0.00299174,66802.0,66796.0,0.00468549]
[1729886928444,0.11596222,66801.0,66797.0,0.1551893]
[1729886928660,0.11596222,66801.0,66798.0,0.00468549]
[1729886928877,0.11596222,66801.0,66799.0,0.00468549]
[1729886929116,0.11596222,66801.0,66800.0,0.00468549]
[1729886930874,0.11596222,66801.0,66800.0,0.00468554]
[1729886931090,0.00299174,66802.0,66800.0,0.00468554]
[1729886931302,0.30236074,66807.0,66801.0,0.00468554]
[1729886931523,0.30236074,66807.0,66802.0,0.00468554]
[1729886931524,0.299374,66806.0,66802.0,0.00468554]
[1729886931767,0.149693,66804.0,66803.0,0.00468554]
[1729886931980,0.15268474,66804.0,66803.0,0.00468554]
[1729886933355,0.15268474,66804.0,66798.0,0.15050381]
[1729886933356,0.1497,66800.0,66798.0,0.15050381]
[1729886933575,0.25,66802.0,66799.0,0.00468579]
[1729886933781,0.25,66802.0,66800.0,0.00468579]
[1729886933782,0.1497,66801.0,66800.0,0.00468579]
[1729886934223,0.0812,66801.0,66800.0,0.00468579]
[1729886934468,0.0812,66801.0,66800.0,0.00468581]
[1729886934702,0.0812,66801.0,66798.0,0.15050381]
[1729886935139,0.00299174,66805.0,66800.0,0.00468581]
[1729886935369,0.301025,66804.0,66801.0,0.00468581]
[1729886935599,0.15268474,66803.0,66802.0,0.00468581]
[1729886937549,0.00299174,66803.0,66802.0,0.00468581]
[1729886937771,0.15268474,66803.0,66802.0,0.00468581]
[1729886938014,0.00299174,66803.0,66802.0,0.00468581]
[1729886938245,0.00299174,66803.0,66802.0,0.00468571]
[1729886938712,0.149693,66803.0,66802.0,0.00468571]
[1729886939183,0.00463374,66804.0,66802.0,0.00468571]
[1729886939184,0.001642,66804.0,66802.0,0.15518952]
[1729886939408,0.001642,66804.0,66803.0,0.15518952]
[1729886942149,0.001642,66804.0,66803.0,0.30488252]
[1729886942410,0.001642,66804.0,66803.0,0.46034827]
[1729886942647,0.001642,66808.0,66807.0,0.30514975]
[1729886942864,0.001642,66808.0,66807.0,0.47082891]
[1729886943093,0.001642,66808.0,66807.0,0.46783559]
[1729886943312,0.001642,66813.0,66812.0,0.149673]
[1729886943543,0.001642,66813.0,66812.0,0.31235784]
[1729886944527,0.001642,66813.0,66812.0,0.31235783]
[1729886944763,0.001642,66813.0,66812.0,0.31235669]
[1729886945222,0.001642,66813.0,66812.0,0.30486138]
[1729886945927,0.001642,66813.0,66812.0,0.15518838]
[1729886946163,0.151313,66813.0,66812.0,0.00468457]
[1729886946495,0.233013,66813.0,66812.0,0.00468457]
[1729886946719,0.27781223,66813.0,66812.0,0.00468457]
[1729886947582,0.12812812,66813.0,66809.0,0.149679]
[1729886947801,0.04478612,66812.0,66810.0,0.15518871]
[1729886948018,0.04478612,66812.0,66810.0,0.15050381]
[1729886948240,0.083342,66813.0,66811.0,0.00468491]
[1729886948241,0.12812812,66813.0,66811.0,0.00468491]
[1729886948462,0.12812812,66813.0,66811.0,0.15050381]
[1729886948690,0.04642812,66813.0,66811.0,0.15050381]
[1729886948912,0.001642,66813.0,66812.0,0.00468473]
[1729886949141,0.001642,66813.0,66812.0,0.15435773]
[1729886949603,0.001642,66813.0,66812.0,0.00468473]
[1729886949827,0.04642812,66813.0,66812.0,0.00468473]
[1729886950051,0.001642,66813.0,66812.0,0.00468473]
[1729886950314,0.001642,66813.0,66812.0,0.0046848]
[1729886950541,0.001642,66813.0,66812.0,0.46782255]
[1729886951381,0.001642,66813.0,66812.0,0.47437472]
[1729886951605,0.001642,66813.0,66812.0,0.31890897]
[1729886951828,0.001642,66813.0,66812.0,0.32390897]
[1729886952046,0.001642,66813.0,66812.0,0.58404204]
[1729886952250,0.001642,66813.0,66812.0,0.67544608]
[1729886952465,0.001642,66813.0,66812.0,0.67347876]
[1729886952683,0.001642,66813.0,66812.0,0.68284568]
[1729886952922,0.001642,66813.0,66812.0,0.67347876]
[1729886953135,0.001642,66813.0,66812.0,0.68284568]
[1729886953351,0.001642,66816.0,66815.0,0.16663332]
[1729886953561,0.001642,66816.0,66815.0,0.3273498]
[1729886954412,0.001642,66816.0,66815.0,0.32931712]
[1729886955132,0.001642,66816.0,66815.0,0.31713713]
[1729886955373,0.001642,66816.0,66815.0,0.32734658]
[1729886955608,0.001642,66816.0,66815.0,0.3293139]
[1729886956251,0.001642,66816.0,66815.0,0.32734658]
[1729886957135,0.001642,66816.0,66815.0,0.31985318]
[1729886966707,0.001642,66816.0,66815.0,0.31985367]
[1729886968802,0.001696,66818.0,66817.0,0.005]
[1729886969021,0.001696,66818.0,66817.0,0.30984967]
[1729886970002,0.001696,66818.0,66817.0,0.30516581]
[1729886970220,0.001696,66818.0,66817.0,0.30984967]
[1729886973449,0.001696,66818.0,66817.0,0.31181699]
[1729886973697,0.001696,66818.0,66817.0,0.47728274]
[1729886973919,0.001696,66818.0,66817.0,0.48477691]
[1729886975066,0.001696,66818.0,66817.0,0.32734384]
[1729886977350,0.001696,66818.0,66817.0,0.32734369]
[1729886977854,0.001696,66818.0,66817.0,0.31516581]
[1729886978076,0.001696,66818.0,66817.0,0.32734364]
[1729886980360,0.001696,66818.0,66817.0,0.33857505]
[1729886980793,0.001696,66818.0,66817.0,0.34794264]
[1729886981346,0.001696,66818.0,66817.0,0.17391308]
[1729886981563,0.001696,66818.0,66817.0,0.1551876]
[1729886982217,0.151357,66818.0,66813.0,0.001642]
[1729886982429,0.151357,66818.0,66813.0,0.15214581]
[1729886982430,0.48306575,66814.0,66813.0,0.15214581]
[1729886982649,0.48306575,66814.0,66813.0,0.15683048]
[1729886983367,0.48306575,66814.0,66813.0,0.15214581]
[1729886984696,0.48306575,66814.0,66813.0,0.001642]
[1729886985031,0.63273475,66814.0,66813.0,0.001642]
[1729886985128,0.69973436,66814.0,66813.0,0.001642]
[1729886985359,0.89338228,66814.0,66813.0,0.001642]
[1729886985799,0.89306417,66814.0,66813.0,0.001642]
[1729886987562,0.98261757,66814.0,66813.0,0.001642]
[1729886987997,0.89306417,66814.0,66813.0,0.001642]
[1729886989395,1.00501132,66814.0,66813.0,0.001642]
[1729886989625,0.89306417,66814.0,66813.0,0.001642]
[1729886990519,0.89248396,66814.0,66813.0,0.001642]
[1729886995321,0.89248396,66814.0,66813.0,0.15214581]
[1729886995322,0.16192347,66814.0,66813.0,0.15214581]
[1729886995511,0.401696,66818.0,66817.0,0.154662]
[1729886995749,0.401696,66818.0,66817.0,0.15050381]
[1729886996204,0.401696,66818.0,66817.0,0.30016581]
[1729886996414,0.001696,66818.0,66817.0,0.30016581]
[1729886996877,0.001696,66818.0,66817.0,0.15050381]
[1729886997095,0.001696,66818.0,66817.0,0.30016581]
[1729886999117,0.001696,66818.0,66817.0,0.15050381]
[1729887000924,0.001696,66818.0,66817.0,0.30980969]
[1729887001149,0.001696,66818.0,66817.0,0.30681693]
[1729887001365,0.001696,66818.0,66817.0,0.30484961]
[1729887001584,0.001696,66818.0,66817.0,0.30784237]
[1729887002038,0.001696,66818.0,66817.0,0.30315857]
[1729887002262,0.001696,66818.0,66817.0,0.30784237]
[1729887002922,0.001696,66818.0,66817.0,0.30315857]
[1729887003364,0.001696,66818.0,66813.0,0.001642]
[1729887003589,0.001696,66818.0,66814.0,0.15050381]
[1729887003814,0.00299174,66817.0,66813.0,0.001642]
[1729887004248,0.299334,66815.0,66813.0,0.001642]
[1729887004530,0.00299174,66814.0,66813.0,0.001642]
[1729887004748,0.00299174,66817.0,66813.0,0.001642]
[1729887004969,0.45198074,66817.0,66813.0,0.001642]
[1729887005186,0.00299174,66816.0,66813.0,0.001642]
[1729887005650,0.149668,66815.0,66813.0,0.001642]
[1729887005890,0.15266074,66814.0,66813.0,0.001642]
[1729887006120,0.15266074,66814.0,66803.0,0.000821]
[1729887006121,0.0768,66809.0,66803.0,0.000821]
[1729887006345,0.0768,66809.0,66808.0,0.22450889]
[1729887006561,0.0768,66809.0,66803.0,0.15132481]
[1729887006772,0.226481,66809.0,66803.0,0.15132481]
[1729887007208,0.0768,66809.0,66803.0,0.15132481]
[1729887008370,0.00299174,66808.0,66803.0,0.15132481]
[1729887009051,0.30235874,66808.0,66803.0,0.15132481]
[1729887009300,0.149689,66805.0,66803.0,0.15132481]
[1729887009535,0.299369,66807.0,66803.0,0.15132481]
[1729887009536,0.00299174,66806.0,66803.0,0.15132481]
[1729887010506,0.00299174,66808.0,66803.0,0.15132481]
[1729887011710,0.149691,66804.0,66803.0,0.000821]
[1729887012179,0.15268274,66804.0,66803.0,0.000821]
[1729887012668,0.30814849,66804.0,66803.0,0.000821]
[1729887012907,0.30515675,66804.0,66803.0,0.000821]
[1729887013156,0.35280193,66804.0,66803.0,0.000821]
[1729887013383,0.60127594,66804.0,66803.0,0.000821]
[1729887013604,0.78849343,66804.0,66803.0,0.000821]
[1729887013859,0.63302768,66804.0,66803.0,0.000821]
[1729887014348,0.74457357,66804.0,66803.0,0.000821]
[1729887014593,0.14326471,66804.0,66803.0,0.000821]
[1729887014840,0.04457802,66804.0,66803.0,0.000821]
[1729887015531,0.02641975,66805.0,66803.0,0.000821]
[1729887015755,0.02641975,66805.0,66803.0,0.15132481]
[1729887015756,0.02342801,66805.0,66803.0,0.15132481]
[1729887016100,0.04457802,66810.0,66803.0,0.15132481]
[1729887016430,0.149678,66810.0,66803.0,0.15132481]
[1729887016654,0.22450889,66809.0,66803.0,0.15132481]
[1729887016877,0.149691,66804.0,66803.0,0.000821]
[1729887017120,0.23508274,66804.0,66803.0,0.000821]
[1729887021983,0.27961489,66804.0,66803.0,0.000821]
[1729887022217,0.47927058,66804.0,66803.0,0.000821]
[1729887022451,0.63174459,66804.0,66803.0,0.000821]
[1729887022686,0.54268028,66804.0,66803.0,0.000821]
[1729887022897,0.65401067,66804.0,66803.0,0.000821]
[1729887023352,0.49854492,66804.0,66803.0,0.000821]
[1729887023584,0.38721453,66804.0,66803.0,0.000821]
[1729887024050,0.49854492,66804.0,66803.0,0.000821]
[1729887024300,0.06682026,66804.0,66803.0,0.000821]
[1729887024520,0.04454786,66804.0,66803.0,0.000821]
[1729887027258,0.0475396,66804.0,66803.0,0.000821]
[1729887028408,0.37719163,66804.0,66803.0,0.000821]
[1729887028632,0.149691,66804.0,66803.0,0.000821]
[1729887028861,0.15268274,66804.0,66803.0,0.000821]
[1729887029784,0.1972306,66804.0,66803.0,0.000821]
[1729887030284,0.19721782,66804.0,66803.0,0.000821]
[1729887030500,0.15268274,66804.0,66803.0,0.000821]
[1729887031173,0.21948536,66804.0,66803.0,0.000821]
[1729887032580,0.15268274,66804.0,66803.0,0.000821]
[1729887033949,0.00299174,66804.0,66803.0,0.000821]
[1729887034416,0.04455554,66805.0,66803.0,0.15132481]
[1729887034636,0.04455554,66806.0,66803.0,0.15132481]
[1729887034879,0.04455554,66807.0,66803.0,0.15132481]
[1729887036037,0.00299174,66806.0,66803.0,0.15132481]
[1729887036480,0.00299174,66806.0,66803.0,0.15794601]
[1729887036723,0.04455554,66807.0,66803.0,0.15794601]
[1729887037858,0.04454681,66807.0,66803.0,0.15794601]
[1729887039072,0.04454681,66808.0,66803.0,0.15794601]
[1729887039474,0.04454365,66808.0,66803.0,0.15794601]
[1729887039917,0.00299174,66807.0,66803.0,0.15794601]
[1729887040614,0.19422665,66808.0,66803.0,0.15794601]
[1729887041484,0.0445365,66807.0,66803.0,0.15794601]
[1729887042612,0.0445365,66806.0,66804.0,0.15050381]
[1729887042844,0.06680476,66808.0,66804.0,0.15050381]
[1729887042845,0.0445365,66807.0,66804.0,0.15050381]
[1729887044252,0.24468688,66810.0,66804.0,0.15050381]
[1729887044253,0.0445365,66808.0,66804.0,0.15050381]
[1729887044484,0.06680476,66810.0,66804.0,0.15050381]
[1729887044485,0.0445365,66807.0,66804.0,0.15050381]
[1729887044709,0.24482942,66810.0,66804.0,0.15050381]
[1729887044710,0.0445365,66806.0,66804.0,0.15050381]
[1729887044923,0.26680701,66811.0,66804.0,0.15050381]
[1729887044924,0.0445365,66807.0,66804.0,0.15050381]
[1729887045383,0.0445365,66806.0,66804.0,0.15050381]
[1729887045653,0.0445365,66805.0,66804.0,0.15050381]
[1729887046100,0.0445365,66806.0,66804.0,0.15050381]
[1729887046319,0.0445365,66805.0,66804.0,0.15050381]
[1729887046539,0.06680476,66806.0,66804.0,0.15050381]
[1729887046990,0.04458669,66805.0,66804.0,0.15050381]
[1729887047223,0.04458669,66806.0,66804.0,0.15050381]
[1729887047437,0.06680476,66806.0,66804.0,0.15050381]
[1729887047674,0.08907301,66806.0,66804.0,0.15050381]
[1729887048100,0.24493663,66806.0,66804.0,0.15050381]
[1729887048533,0.39462363,66806.0,66804.0,0.15050381]
[1729887048753,0.15586362,66805.0,66804.0,0.15050381]
[1729887048994,0.26720488,66806.0,66804.0,0.15050381]
[1729887049435,0.15546575,66807.0,66804.0,0.15050381]
[1729887049436,0.15586362,66805.0,66804.0,0.15050381]
[1729887049891,0.26751375,66805.0,66804.0,0.15050381]
[1729887050111,0.11165013,66805.0,66804.0,0.15050381]
[1729887050573,0.11167756,66805.0,66804.0,0.15050381]
[1729887050833,0.15586362,66805.0,66804.0,0.15050381]
[1729887051050,0.26754215,66805.0,66804.0,0.15050381]
[1729887051294,0.15586362,66805.0,66804.0,0.15050381]
[1729887053484,0.15586362,66806.0,66804.0,0.15050381]
[1729887053714,0.15586362,66805.0,66804.0,0.15050381]
[1729887053937,0.15586362,66806.0,66804.0,0.15050381]
[1729887054160,0.15586362,66805.0,66804.0,0.15050381]
[1729887057925,0.15626968,66805.0,66804.0,0.15050381]
[1729887060243,0.15626968,66805.0,66803.0,0.000821]
[1729887060480,0.4324184,66804.0,66803.0,0.000821]
[1729887060931,0.52266392,66804.0,66803.0,0.000821]
[1729887061357,0.38819295,66804.0,66803.0,0.000821]
[1729887061574,0.52229755,66804.0,66803.0,0.000821]
[1729887061790,0.37260911,66804.0,66803.0,0.000821]
[1729887062014,0.15590195,66804.0,66803.0,0.000821]
[1729887062224,0.29299986,66804.0,66803.0,0.000821]
[1729887062541,0.44269086,66804.0,66803.0,0.000821]
[1729887062723,0.43969912,66804.0,66803.0,0.000821]
[1729887064126,0.34943941,66804.0,66803.0,0.000821]
[1729887065774,0.3503568,66804.0,66803.0,0.000821]
[1729887071056,0.30651034,66804.0,66803.0,0.000821]
[1729887071509,0.46197609,66804.0,66803.0,0.000821]
[1729887072453,0.5057861,66804.0,66803.0,0.000821]
[1729887072709,0.81203666,66804.0,66803.0,0.000821]
[1729887072928,0.5813861,66804.0,66803.0,0.000821]
[1729887078590,0.73198635,66804.0,66803.0,0.000821]
[1729887079669,0.7338239,66804.0,66803.0,0.000821]
[1729887080532,0.67768337,66804.0,66803.0,0.000821]
[1729887081379,0.57835815,66804.0,66803.0,0.000821]
[1729887081607,0.42775593,66804.0,66803.0,0.000821]
[1729887084355,0.42775431,66804.0,66803.0,0.000821]
[1729887085262,0.45118468,66804.0,66803.0,0.000821]
[1729887089779,0.45118468,66804.0,66803.0,3.138e-05]
[1729887089780,0.55768468,66804.0,66803.0,3.138e-05]
[1729887091990,0.55768468,66804.0,66795.0,0.22532989]
[1729887091991,0.34835944,66796.0,66795.0,0.22532989]
[1729887092203,0.70136472,66796.0,66795.0,0.22532989]
[1729887092437,0.50271428,66796.0,66795.0,0.22532989]
[1729887092673,0.45149753,66796.0,66795.0,0.000821]
[1729887092900,0.20246331,66796.0,66795.0,0.000821]
[1729887093381,0.15880998,66796.0,66795.0,0.000821]
[1729887094943,0.29261393,66799.0,66795.0,0.000821]
[1729887095818,0.15880998,66798.0,66795.0,0.000821]
[1729887096030,0.15880998,66797.0,66795.0,0.000821]
[1729887096241,0.00299174,66796.0,66795.0,0.000821]
[1729887096460,0.16180172,66796.0,66795.0,0.000821]
[1729887097865,0.16208707,66796.0,66795.0,0.000821]
[1729887099785,0.15909533,66796.0,66795.0,0.000821]
[1729887100208,0.15909533,66797.0,66795.0,0.000821]
[1729887100424,0.15909533,66796.0,66795.0,0.000821]
[1729887100901,0.15909533,66797.0,66795.0,0.000821]
[1729887103239,0.15909533,66797.0,66796.0,0.5247217]
[1729887103468,0.06695163,66797.0,66796.0,0.47501281]
[1729887103682,0.04462998,66798.0,66797.0,0.30138032]
[1729887103906,0.04462998,66800.0,66799.0,0.154702]
[1729887104130,0.04462998,66802.0,66801.0,0.149698]
[1729887104359,0.04462998,66803.0,66802.0,0.149696]
[1729887104585,0.04627398,66804.0,66802.0,0.15050381]
[1729887104810,0.04627398,66804.0,66803.0,0.30019681]
[1729887106582,0.001644,66804.0,66803.0,0.30019681]
[1729887112417,0.001644,66804.0,66803.0,0.30101881]
[1729887114732,0.001644,66804.0,66803.0,0.15132581]
[1729887114958,0.151335,66804.0,66803.0,0.000822]
[1729887115191,0.15432674,66804.0,66803.0,0.000822]
[1729887115394,0.09083762,66804.0,66803.0,0.000822]
[1729887115607,0.25057858,66804.0,66803.0,0.000822]
[1729887115817,0.31102698,66804.0,66803.0,0.000822]
[1729887116255,0.4002206,66804.0,66803.0,0.000822]
[1729887116477,0.40004043,66804.0,66803.0,0.000822]
[1729887116903,0.39992744,66804.0,66803.0,0.000822]
[1729887117128,0.25023644,66804.0,66803.0,0.000822]
[1729887117337,0.25322818,66804.0,66803.0,0.000822]
[1729887118448,0.25023644,66804.0,66803.0,0.000822]
[1729887122001,0.27264784,66804.0,66803.0,0.000822]
[1729887122430,0.16115581,66804.0,66803.0,0.000822]
[1729887123108,0.25023716,66804.0,66803.0,0.000822]
[1729887124028,0.16115581,66804.0,66803.0,0.000822]
[1729887124710,0.00146383,66804.0,66803.0,0.47221881]
[1729887131464,0.00146383,66804.0,66803.0,0.39191881]
[1729887135006,0.00146383,66804.0,66803.0,0.30101881]
[1729887142417,0.04604221,66804.0,66803.0,0.30101881]
[1729887142625,0.00146383,66804.0,66803.0,0.30101881]
[1729887143938,0.04604221,66804.0,66803.0,0.30101881]
[1729887144159,0.00146383,66804.0,66803.0,0.30101881]
[1729887144621,0.04604221,66804.0,66803.0,0.30101881]
[1729887144839,0.00146383,66804.0,66803.0,0.30101881]
[1729887146682,0.04613393,66804.0,66803.0,0.30101881]
[1729887146932,0.00146383,66804.0,66803.0,0.31601881]
[1729887147152,0.00146383,66804.0,66803.0,0.49431881]
[1729887147432,0.0446701,66810.0,66809.0,0.15468]
[1729887147665,0.08997776,66813.0,66811.0,0.005]
[1729887147666,0.0446701,66812.0,66811.0,0.005]
[1729887147906,0.000821,66813.0,66812.0,0.149673]
[1729887148130,0.000821,66813.0,66812.0,0.30017681]
[1729887156750,0.000821,66813.0,66812.0,0.30317]
[1729887156973,0.000821,66813.0,66812.0,0.30817]
[1729887157212,0.000821,66813.0,66812.0,0.58113474]
[1729887157421,0.000821,66813.0,66812.0,0.58814199]
[1729887157873,0.000821,66813.0,66812.0,0.59282636]
[1729887159599,0.000821,66813.0,66812.0,0.58782636]
[1729887159810,0.000821,66813.0,66812.0,0.59282636]
[1729887160972,0.000821,66813.0,66812.0,0.59282603]
[1729887161668,0.000821,66813.0,66812.0,0.58782603]
[1729887162594,0.001696,66818.0,66817.0,0.25592718]
[1729887162893,0.001696,66818.0,66817.0,0.50572885]
[1729887163126,0.001696,66818.0,66817.0,0.69241251]
[1729887163818,0.001696,66818.0,66817.0,0.59114733]
[1729887164043,0.001696,66818.0,66817.0,0.59311465]
[1729887165227,0.001696,66818.0,66817.0,0.58843099]
[1729887166372,0.001696,66818.0,66817.0,0.59498416]
[1729887166599,0.001696,66818.0,66817.0,0.59301684]
[1729887167274,0.001696,66818.0,66817.0,0.59770051]
[1729887167492,0.001696,66818.0,66817.0,0.59301684]
[1729887167705,0.001696,66818.0,66817.0,0.59770052]
[1729887168131,0.001696,66818.0,66817.0,0.59301684]
[1729887172021,0.001696,66818.0,66817.0,0.59498416]
[1729887172446,0.001696,66818.0,66817.0,0.59966786]
[1729887177369,0.001644,66828.0,66826.0,0.005]
[1729887177597,0.001644,66828.0,66827.0,0.30014381]
[1729887192427,0.001696,66833.0,66827.0,0.30014381]
[1729887192428,0.04473201,66831.0,66827.0,0.15050381]
[1729887192641,0.04473201,66832.0,66829.0,0.29927]
[1729887192849,0.04473201,66832.0,66831.0,0.149631]
[1729887193092,0.16699401,66833.0,66832.0,0.149628]
[1729887193335,0.16699401,66833.0,66832.0,0.30013181]
[1729887193549,0.099896,66833.0,66832.0,0.30013181]
[1729887194033,0.1670733,66833.0,66832.0,0.30013181]
[1729887194262,0.16707336,66833.0,66832.0,0.30013181]
[1729887194483,0.06887878,66833.0,66832.0,0.5246407]
[1729887194695,0.001696,66833.0,66832.0,0.30981516]
[1729887194911,0.001696,66833.0,66832.0,0.31178225]
[1729887195132,0.001644,66834.0,66833.0,0.15659332]
[1729887195344,0.001644,66834.0,66833.0,0.31280491]
[1729887195580,0.001644,66834.0,66833.0,0.30981293]
[1729887195794,0.001644,66834.0,66833.0,0.30481293]
[1729887196225,0.001644,66834.0,66833.0,0.30981293]
[1729887198017,0.001644,66834.0,66833.0,0.31658564]
[1729887198951,0.001644,66834.0,66833.0,0.31658543]
[1729887201061,0.001644,66834.0,66833.0,0.31855275]
[1729887204322,0.001644,66834.0,66833.0,0.31658543]
[1729887206353,0.001644,66834.0,66833.0,0.31855275]
[1729887206566,0.001644,66834.0,66833.0,0.32855275]
[1729887207446,0.06884603,66844.0,66833.0,0.32855275]
[1729887207447,0.04476669,66843.0,66837.0,0.00196732]
[1729887207660,0.04476669,66843.0,66842.0,0.149606]
[1729887207879,0.04476669,66843.0,66842.0,0.30010981]
[1729887208772,0.001696,66844.0,66842.0,0.30010981]
[1729887208773,0.001696,66844.0,66843.0,0.149604]
[1729887208999,0.001696,66844.0,66843.0,0.30010781]
[1729887209220,0.001696,66844.0,66843.0,0.5246167]
[1729887209437,0.001696,66844.0,66843.0,0.31707513]
[1729887209683,0.001696,66844.0,66843.0,0.50408372]
[1729887209906,0.001696,66844.0,66843.0,0.50408349]
[1729887210146,0.001696,66844.0,66843.0,0.50408341]
[1729887211220,0.001696,66844.0,66843.0,0.50211609]
[1729887213040,0.001696,66844.0,66843.0,0.50408341]
[1729887213472,0.001696,66844.0,66843.0,0.50408339]
[1729887214146,0.001696,66844.0,66843.0,0.50211607]
[1729887215275,0.001696,66844.0,66843.0,0.50408339]
[1729887215988,0.001696,66844.0,66843.0,0.50211607]
[1729887217173,0.001696,66844.0,66843.0,0.50408339]
[1729887218568,0.001696,66844.0,66843.0,0.50211607]
[1729887219597,0.001696,66844.0,66843.0,0.42631607]
[1729887220231,0.22290089,66852.0,66851.0,0.154586]
[1729887220436,0.22290089,66852.0,66851.0,0.30508981]
[1729887220645,0.001696,66854.0,66853.0,0.149581]
[1729887220846,0.001696,66854.0,66853.0,0.30008481]